[Event "Titled Tuesday Blitz March 21 Early 2023"]
[White "Fromm, Marius"]
[Black "Yilmaz, Mustafa"]
[WhiteFideId "12993190"]
[BlackFideId "6302718"]
[WhiteElo "2325"]
[BlackElo "2523"]
[Result "1-0"]
[Round "02"]
[TimeControl "180+2"]
[Date "2023.03.21"]
[WhiteClock "0:00:14"]
[BlackClock "0:00:02"]

1. e4 {[%clk 0:03:00]}  c5 {[%clk 0:02:59]} 2. Nf3 {[%clk 0:03:01]}  d6 {[%clk 0:03:00]} 3. d4 {[%clk 0:03:01]}  cxd4 {[%clk 0:03:01]} 4. Nxd4 {[%clk 0:03:02]}  Nf6 {[%clk 0:03:01]} 5. Nc3 {[%clk 0:03:03]}  a6 {[%clk 0:03:01]} 6. a3 {[%clk 0:03:03]}  g6 {[%clk 0:03:00]} 7. f3 {[%clk 0:03:00]}  Bg7 {[%clk 0:03:00]} 8. Be3 {[%clk 0:03:01]}  Nc6 {[%clk 0:03:00]} 9. Qd2 {[%clk 0:03:01]}  Bd7 {[%clk 0:02:57]} 10. g4 {[%clk 0:02:56]}  Rc8 {[%clk 0:02:51]} 11. O-O-O {[%clk 0:02:53]}  b5 {[%clk 0:02:44]} 12. h4 {[%clk 0:02:44]}  h5 {[%clk 0:02:24]} 13. g5 {[%clk 0:02:44]}  Nh7 {[%clk 0:02:24]} 14. Nd5 {[%clk 0:02:27]}  Nf8 {[%clk 0:02:16]} 15. Nxb5 {[%clk 0:02:17]}  Bxb2+ {[%clk 0:01:03]} 16. Kxb2 {[%clk 0:02:11]}  Rb8 {[%clk 0:01:03]} 17. c4 {[%clk 0:01:56]}  Ne6 {[%clk 0:00:58]} 18. Ka1 {[%clk 0:01:52]}  axb5 {[%clk 0:00:58]} 19. cxb5 {[%clk 0:01:52]}  Ne5 {[%clk 0:00:58]} 20. f4 {[%clk 0:01:43]}  Ng4 {[%clk 0:00:54]} 21. f5 {[%clk 0:01:17]}  Nc5 {[%clk 0:00:51]} 22. Bxc5 {[%clk 0:01:06]}  dxc5 {[%clk 0:00:51]} 23. fxg6 {[%clk 0:00:59]}  fxg6 {[%clk 0:00:34]} 24. Bc4 {[%clk 0:00:59]}  e6 {[%clk 0:00:20]} 25. Nf4 {[%clk 0:00:45]}  Rf8 {[%clk 0:00:13]} 26. Rhf1 {[%clk 0:00:37]}  Qe7 {[%clk 0:00:12]} 27. Qb2 {[%clk 0:00:19]}  Ra8 {[%clk 0:00:04]} 28. Nxg6 {[%clk 0:00:18]}  Rxf1 {[%clk 0:00:04]} 29. Rxf1 {[%clk 0:00:15]}  Rxa3+ {[%clk 0:00:02]} 30. Qxa3 {[%clk 0:00:16]}  Qg7+ {[%clk 0:00:02]} 31. Ka2 {[%clk 0:00:14]} 1-0


[Site "https://www.chess.com"]

[Event "Titled Tuesday Blitz March 21 Early 2023"]
[White "Khumalo, Keith"]
[Black "Sjugirov, Sanan"]
[WhiteFideId "14319470"]
[BlackFideId "4189302"]
[WhiteElo "2056"]
[BlackElo "2569"]
[Result "0-1"]
[Round "02"]
[TimeControl "180+2"]
[Date "2023.03.21"]
[WhiteClock "0:00:18"]
[BlackClock "0:00:09"]

1. d4 {[%clk 0:03:00]}  Nf6 {[%clk 0:03:00]} 2. c4 {[%clk 0:03:01]}  e6 {[%clk 0:03:00]} 3. Nf3 {[%clk 0:03:01]}  d5 {[%clk 0:03:00]} 4. g3 {[%clk 0:03:02]}  Bb4+ {[%clk 0:02:58]} 5. Bd2 {[%clk 0:03:01]}  Be7 {[%clk 0:02:59]} 6. Qc2 {[%clk 0:03:02]}  c6 {[%clk 0:02:58]} 7. Bg2 {[%clk 0:03:02]}  b6 {[%clk 0:02:57]} 8. O-O {[%clk 0:03:03]}  O-O {[%clk 0:02:56]} 9. Bf4 {[%clk 0:03:03]}  Ba6 {[%clk 0:02:56]} 10. b3 {[%clk 0:02:50]}  Nbd7 {[%clk 0:02:55]} 11. Nc3 {[%clk 0:02:49]}  Rc8 {[%clk 0:02:54]} 12. Rfd1 {[%clk 0:02:36]}  Bb4 {[%clk 0:02:54]} 13. a3 {[%clk 0:02:29]}  Be7 {[%clk 0:02:54]} 14. e4 {[%clk 0:02:24]}  dxc4 {[%clk 0:02:53]} 15. b4 {[%clk 0:02:12]}  Bb7 {[%clk 0:02:50]} 16. Nd2 {[%clk 0:02:08]}  b5 {[%clk 0:02:48]} 17. Nf3 {[%clk 0:02:03]}  a5 {[%clk 0:02:46]} 18. Rab1 {[%clk 0:02:02]}  axb4 {[%clk 0:02:46]} 19. axb4 {[%clk 0:02:03]}  Ra8 {[%clk 0:02:43]} 20. h4 {[%clk 0:02:01]}  h6 {[%clk 0:02:38]} 21. d5 {[%clk 0:01:35]}  exd5 {[%clk 0:02:34]} 22. exd5 {[%clk 0:01:35]}  Nxd5 {[%clk 0:02:32]} 23. Nxd5 {[%clk 0:01:35]}  cxd5 {[%clk 0:02:32]} 24. Nd4 {[%clk 0:01:36]}  Nf6 {[%clk 0:02:18]} 25. Nxb5 {[%clk 0:01:25]}  Qb6 {[%clk 0:02:17]} 26. Nd4 {[%clk 0:01:17]}  Rfe8 {[%clk 0:02:17]} 27. Nf5 {[%clk 0:01:14]}  Bf8 {[%clk 0:02:14]} 28. Be3 {[%clk 0:01:15]}  Qc7 {[%clk 0:02:06]} 29. Bd4 {[%clk 0:01:14]}  Ne4 {[%clk 0:01:56]} 30. h5 {[%clk 0:01:01]}  Qd7 {[%clk 0:01:48]} 31. Bh3 {[%clk 0:01:01]}  Qa4 {[%clk 0:01:43]} 32. Qb2 {[%clk 0:00:58]}  Qa3 {[%clk 0:01:24]} 33. Qc2 {[%clk 0:00:49]}  Qa4 {[%clk 0:01:20]} 34. Qb2 {[%clk 0:00:49]}  Qa2 {[%clk 0:01:19]} 35. Qc1 {[%clk 0:00:41]}  Qa3 {[%clk 0:01:05]} 36. Qf4 {[%clk 0:00:40]}  Ng5 {[%clk 0:00:56]} 37. Bg2 {[%clk 0:00:40]}  Qa6 {[%clk 0:00:50]} 38. Qg4 {[%clk 0:00:37]}  Qe6 {[%clk 0:00:41]} 39. f4 {[%clk 0:00:37]}  Bc8 {[%clk 0:00:36]} 40. fxg5 {[%clk 0:00:35]}  Qxf5 {[%clk 0:00:37]} 41. Qxf5 {[%clk 0:00:36]}  Bxf5 {[%clk 0:00:38]} 42. Rb2 {[%clk 0:00:32]}  Be4 {[%clk 0:00:31]} 43. gxh6 {[%clk 0:00:32]}  gxh6 {[%clk 0:00:31]} 44. b5 {[%clk 0:00:28]}  Rab8 {[%clk 0:00:26]} 45. b6 {[%clk 0:00:28]}  Bg7 {[%clk 0:00:23]} 46. Bxg7 {[%clk 0:00:25]}  Kxg7 {[%clk 0:00:24]} 47. Bxe4 {[%clk 0:00:26]}  dxe4 {[%clk 0:00:25]} 48. Rc1 {[%clk 0:00:24]}  Rec8 {[%clk 0:00:21]} 49. Re2 {[%clk 0:00:22]}  Rxb6 {[%clk 0:00:17]} 50. Rxe4 {[%clk 0:00:21]}  c3 {[%clk 0:00:17]} 51. Kf2 {[%clk 0:00:18]}  c2 {[%clk 0:00:14]} 52. Re2 {[%clk 0:00:18]}  Rbc6 {[%clk 0:00:13]} 53. Kf3 {[%clk 0:00:19]}  Rc3+ {[%clk 0:00:13]} 54. Kf4 {[%clk 0:00:20]}  R8c4+ {[%clk 0:00:13]} 55. Re4 {[%clk 0:00:20]}  Rxe4+ {[%clk 0:00:12]} 56. Kxe4 {[%clk 0:00:21]}  Kf6 {[%clk 0:00:12]} 57. Kf4 {[%clk 0:00:21]}  Rc4+ {[%clk 0:00:12]} 58. Kf3 {[%clk 0:00:21]}  Kg5 {[%clk 0:00:12]} 59. g4 {[%clk 0:00:21]}  f6 {[%clk 0:00:11]} 60. Ke3 {[%clk 0:00:17]}  Kxg4 {[%clk 0:00:10]} 61. Kd3 {[%clk 0:00:16]}  Rc5 {[%clk 0:00:09]} 62. Kd2 {[%clk 0:00:17]}  Kxh5 {[%clk 0:00:09]} 63. Rg1 {[%clk 0:00:18]}  c1=Q+ {[%clk 0:00:09]} 0-1


[Site "https://www.chess.com"]

[Event "Titled Tuesday Blitz March 21 Early 2023"]
[White "Drygalov, Sergey"]
[Black "Ozates, Tuna"]
[WhiteFideId "24171743"]
[BlackFideId "6354521"]
[WhiteElo "2533"]
[BlackElo "2151"]
[Result "1-0"]
[Round "02"]
[TimeControl "180+2"]
[Date "2023.03.21"]
[WhiteClock "0:00:18"]
[BlackClock "0:00:10"]

1. d4 {[%clk 0:02:49]}  Nf6 {[%clk 0:02:58]} 2. c4 {[%clk 0:02:49]}  e6 {[%clk 0:02:55]} 3. Nf3 {[%clk 0:02:49]}  d5 {[%clk 0:02:54]} 4. Nc3 {[%clk 0:02:49]}  c5 {[%clk 0:02:55]} 5. cxd5 {[%clk 0:02:49]}  Nxd5 {[%clk 0:02:56]} 6. e3 {[%clk 0:02:47]}  Be7 {[%clk 0:02:54]} 7. Bd3 {[%clk 0:02:47]}  O-O {[%clk 0:02:54]} 8. O-O {[%clk 0:02:47]}  Nc6 {[%clk 0:02:54]} 9. Qe2 {[%clk 0:02:47]}  cxd4 {[%clk 0:02:40]} 10. exd4 {[%clk 0:02:48]}  b6 {[%clk 0:02:37]} 11. Qe4 {[%clk 0:02:39]}  f5 {[%clk 0:02:34]} 12. Qe2 {[%clk 0:02:37]}  Bf6 {[%clk 0:02:29]} 13. Nxd5 {[%clk 0:02:05]}  Qxd5 {[%clk 0:02:28]} 14. Bc4 {[%clk 0:02:04]}  Qd6 {[%clk 0:02:25]} 15. Rd1 {[%clk 0:02:04]}  Nb4 {[%clk 0:02:20]} 16. Bg5 {[%clk 0:01:46]}  Nd5 {[%clk 0:02:16]} 17. Bxf6 {[%clk 0:01:46]}  gxf6 {[%clk 0:02:15]} 18. Re1 {[%clk 0:01:41]}  Bd7 {[%clk 0:02:15]} 19. Rac1 {[%clk 0:01:38]}  Rac8 {[%clk 0:02:14]} 20. Nd2 {[%clk 0:01:33]}  Kh8 {[%clk 0:02:13]} 21. Bb3 {[%clk 0:01:27]}  Nf4 {[%clk 0:02:12]} 22. Qe3 {[%clk 0:01:15]}  Rxc1 {[%clk 0:02:09]} 23. Rxc1 {[%clk 0:01:14]}  Rg8 {[%clk 0:01:39]} 24. g3 {[%clk 0:01:14]}  Nh3+ {[%clk 0:01:36]} 25. Kg2 {[%clk 0:00:55]}  Nf4+ {[%clk 0:00:59]} 26. Kf1 {[%clk 0:00:50]}  Bb5+ {[%clk 0:00:59]} 27. Bc4 {[%clk 0:00:50]}  Nd5 {[%clk 0:00:59]} 28. Qe2 {[%clk 0:00:49]}  Rc8 {[%clk 0:00:56]} 29. Re1 {[%clk 0:00:45]}  Bd7 {[%clk 0:00:53]} 30. Qh5 {[%clk 0:00:32]}  b5 {[%clk 0:00:33]} 31. Bb3 {[%clk 0:00:26]}  a5 {[%clk 0:00:31]} 32. Qh6 {[%clk 0:00:15]}  Rf8 {[%clk 0:00:09]} 33. Bxd5 {[%clk 0:00:15]}  exd5 {[%clk 0:00:09]} 34. Nf3 {[%clk 0:00:15]}  b4 {[%clk 0:00:09]} 35. Nh4 {[%clk 0:00:16]}  f4 {[%clk 0:00:06]} 36. Ng6+ {[%clk 0:00:16]}  Kg8 {[%clk 0:00:07]} 37. Qxf8+ {[%clk 0:00:16]}  Qxf8 {[%clk 0:00:07]} 38. Nxf8 {[%clk 0:00:17]}  Kxf8 {[%clk 0:00:08]} 39. gxf4 {[%clk 0:00:17]}  Bb5+ {[%clk 0:00:08]} 40. Kg2 {[%clk 0:00:18]}  a4 {[%clk 0:00:09]} 41. f3 {[%clk 0:00:18]}  Bc4 {[%clk 0:00:09]} 42. a3 {[%clk 0:00:18]}  b3 {[%clk 0:00:09]} 43. Re6 {[%clk 0:00:17]}  Kf7 {[%clk 0:00:10]} 44. Rb6 {[%clk 0:00:17]}  Kg6 {[%clk 0:00:10]} 45. Rb4 {[%clk 0:00:17]}  Kf5 {[%clk 0:00:11]} 46. Kg3 {[%clk 0:00:17]}  h5 {[%clk 0:00:09]} 47. h4 {[%clk 0:00:17]}  Bd3 {[%clk 0:00:09]} 48. Rxa4 {[%clk 0:00:17]}  Bc4 {[%clk 0:00:09]} 49. Rb4 {[%clk 0:00:18]}  Ke6 {[%clk 0:00:10]} 50. a4 {[%clk 0:00:18]} 1-0


[Site "https://www.chess.com"]

[Event "Titled Tuesday Blitz March 21 Early 2023"]
[White "Tillyaev, Ulugbek"]
[Black "Ibarra Jerez, Jose Carlos"]
[WhiteFideId "14202441"]
[BlackFideId "2226332"]
[WhiteElo "2377"]
[BlackElo "2638"]
[Result "1-0"]
[Round "02"]
[TimeControl "180+2"]
[Date "2023.03.21"]
[WhiteClock "0:02:10"]
[BlackClock "0:00:08"]

1. e4 {[%clk 0:03:00]}  c5 {[%clk 0:02:59]} 2. d4 {[%clk 0:02:59]}  cxd4 {[%clk 0:02:59]} 3. c3 {[%clk 0:02:58]}  Nf6 {[%clk 0:02:59]} 4. e5 {[%clk 0:02:58]}  Nd5 {[%clk 0:02:59]} 5. Qxd4 {[%clk 0:02:57]}  e6 {[%clk 0:02:58]} 6. Nf3 {[%clk 0:02:56]}  Nc6 {[%clk 0:02:58]} 7. Qg4 {[%clk 0:02:53]}  Qc7 {[%clk 0:02:53]} 8. Qg3 {[%clk 0:02:51]}  Nde7 {[%clk 0:02:07]} 9. Bd3 {[%clk 0:02:48]}  Ng6 {[%clk 0:02:04]} 10. Bxg6 {[%clk 0:02:45]}  hxg6 {[%clk 0:02:04]} 11. O-O {[%clk 0:02:42]}  b6 {[%clk 0:02:00]} 12. Nbd2 {[%clk 0:02:35]}  Ba6 {[%clk 0:01:58]} 13. Re1 {[%clk 0:02:32]}  Be7 {[%clk 0:01:58]} 14. Ne4 {[%clk 0:02:29]}  Rh5 {[%clk 0:01:11]} 15. Bg5 {[%clk 0:02:22]}  Bxg5 {[%clk 0:00:59]} 16. Nd6+ {[%clk 0:02:15]}  Kf8 {[%clk 0:00:52]} 17. Nxg5 {[%clk 0:02:15]}  Nxe5 {[%clk 0:00:23]} 18. Ndxf7 {[%clk 0:02:15]}  Rxg5 {[%clk 0:00:08]} 19. Nxg5 {[%clk 0:02:10]} 1-0


[Site "https://www.chess.com"]

[Event "Titled Tuesday Blitz March 21 Early 2023"]
[White "Mustafayev, Farid"]
[Black "Bachmann, Axel"]
[WhiteFideId "13408771"]
[BlackFideId "3700488"]
[WhiteElo "2269"]
[BlackElo "2605"]
[Result "0-1"]
[Round "02"]
[TimeControl "180+2"]
[Date "2023.03.21"]
[WhiteClock "0:01:31"]
[BlackClock "0:00:57"]

1. c4 {[%clk 0:03:00]}  e5 {[%clk 0:02:58]} 2. Nc3 {[%clk 0:03:00]}  Bb4 {[%clk 0:02:57]} 3. g3 {[%clk 0:03:00]}  Bxc3 {[%clk 0:02:56]} 4. bxc3 {[%clk 0:03:01]}  d6 {[%clk 0:02:56]} 5. Bg2 {[%clk 0:03:01]}  Ne7 {[%clk 0:02:54]} 6. Ba3 {[%clk 0:03:00]}  Nbc6 {[%clk 0:02:52]} 7. c5 {[%clk 0:03:00]}  d5 {[%clk 0:02:51]} 8. Nf3 {[%clk 0:03:00]}  O-O {[%clk 0:02:49]} 9. O-O {[%clk 0:02:59]}  Bf5 {[%clk 0:02:45]} 10. d3 {[%clk 0:02:59]}  Qd7 {[%clk 0:02:44]} 11. Nd2 {[%clk 0:02:58]}  Bh3 {[%clk 0:02:43]} 12. Rb1 {[%clk 0:02:58]}  Rab8 {[%clk 0:02:42]} 13. c4 {[%clk 0:02:57]}  Bxg2 {[%clk 0:02:40]} 14. Kxg2 {[%clk 0:02:57]}  d4 {[%clk 0:02:23]} 15. Nf3 {[%clk 0:02:46]}  h6 {[%clk 0:02:17]} 16. Qc2 {[%clk 0:02:45]}  f5 {[%clk 0:02:15]} 17. e3 {[%clk 0:02:25]}  dxe3 {[%clk 0:02:16]} 18. fxe3 {[%clk 0:02:25]}  f4 {[%clk 0:02:14]} 19. e4 {[%clk 0:02:16]}  fxg3 {[%clk 0:02:06]} 20. hxg3 {[%clk 0:02:16]}  Ng6 {[%clk 0:02:04]} 21. Bc1 {[%clk 0:01:48]}  Qg4 {[%clk 0:01:58]} 22. Nh2 {[%clk 0:01:48]}  Nh4+ {[%clk 0:01:56]} 23. Kh1 {[%clk 0:01:44]}  Rxf1+ {[%clk 0:01:45]} 24. Nxf1 {[%clk 0:01:44]}  Rf8 {[%clk 0:01:25]} 25. Be3 {[%clk 0:01:40]}  Rxf1+ {[%clk 0:01:16]} 26. Rxf1 {[%clk 0:01:39]}  Qh3+ {[%clk 0:01:16]} 27. Kg1 {[%clk 0:01:37]}  Qxg3+ {[%clk 0:01:17]} 28. Kh1 {[%clk 0:01:36]}  Qh3+ {[%clk 0:01:17]} 29. Kg1 {[%clk 0:01:36]}  Qxe3+ {[%clk 0:01:17]} 30. Rf2 {[%clk 0:01:36]}  Nd4 {[%clk 0:01:02]} 31. Qb2 {[%clk 0:01:35]}  Nhf3+ {[%clk 0:00:55]} 32. Kg2 {[%clk 0:01:33]}  Qg5+ {[%clk 0:00:55]} 33. Kh3 {[%clk 0:01:31]}  Qh4+ {[%clk 0:00:55]} 34. Kg2 {[%clk 0:01:31]}  Qh2+ {[%clk 0:00:56]} 35. Kf1 {[%clk 0:01:31]}  Qg1# {[%clk 0:00:57]} 0-1


[Site "https://www.chess.com"]

[Event "Titled Tuesday Blitz March 21 Early 2023"]
[White "Jeet, Jain"]
[Black "Dardha, Daniel"]
[WhiteFideId "5073022"]
[BlackFideId "240990"]
[WhiteElo "2067"]
[BlackElo "2581"]
[Result "0-1"]
[Round "02"]
[TimeControl "180+2"]
[Date "2023.03.21"]
[WhiteClock "0:00:03"]
[BlackClock "0:01:01"]

1. Nf3 {[%clk 0:03:00]}  b6 {[%clk 0:02:58]} 2. g3 {[%clk 0:03:01]}  Bb7 {[%clk 0:02:57]} 3. Bg2 {[%clk 0:03:01]}  g5 {[%clk 0:02:58]} 4. O-O {[%clk 0:03:00]}  g4 {[%clk 0:02:58]} 5. Nh4 {[%clk 0:03:01]}  Bxg2 {[%clk 0:02:59]} 6. Nxg2 {[%clk 0:03:01]}  h5 {[%clk 0:02:59]} 7. e4 {[%clk 0:03:01]}  c5 {[%clk 0:03:00]} 8. d4 {[%clk 0:03:00]}  cxd4 {[%clk 0:02:58]} 9. Qxd4 {[%clk 0:03:01]}  Nf6 {[%clk 0:02:58]} 10. e5 {[%clk 0:03:00]}  Nc6 {[%clk 0:02:58]} 11. Qc3 {[%clk 0:03:00]}  Nd5 {[%clk 0:02:55]} 12. Qd3 {[%clk 0:02:57]}  Ndb4 {[%clk 0:02:44]} 13. Qe4 {[%clk 0:02:56]}  d5 {[%clk 0:02:40]} 14. exd6 {[%clk 0:02:55]}  Qxd6 {[%clk 0:02:40]} 15. a3 {[%clk 0:02:47]}  Qd5 {[%clk 0:02:39]} 16. Qxd5 {[%clk 0:02:42]}  Nxd5 {[%clk 0:02:39]} 17. Nf4 {[%clk 0:02:42]}  O-O-O {[%clk 0:02:35]} 18. Nxd5 {[%clk 0:02:36]}  Rxd5 {[%clk 0:02:22]} 19. Nc3 {[%clk 0:02:37]}  Rd7 {[%clk 0:02:21]} 20. Be3 {[%clk 0:02:31]}  Bg7 {[%clk 0:02:21]} 21. Rad1 {[%clk 0:02:19]}  Bxc3 {[%clk 0:02:21]} 22. bxc3 {[%clk 0:02:18]}  Rhd8 {[%clk 0:02:17]} 23. Rxd7 {[%clk 0:02:17]}  Kxd7 {[%clk 0:02:15]} 24. f3 {[%clk 0:02:15]}  Ne5 {[%clk 0:02:11]} 25. fxg4 {[%clk 0:02:12]}  hxg4 {[%clk 0:02:12]} 26. Bd4 {[%clk 0:01:46]}  Nf3+ {[%clk 0:02:11]} 27. Kg2 {[%clk 0:01:45]}  e5 {[%clk 0:02:06]} 28. Be3 {[%clk 0:01:43]}  Rc8 {[%clk 0:02:06]} 29. Rd1+ {[%clk 0:01:39]}  Ke6 {[%clk 0:02:06]} 30. h4 {[%clk 0:00:52]}  Rxc3 {[%clk 0:02:04]} 31. Bf2 {[%clk 0:00:53]}  Rxc2 {[%clk 0:02:00]} 32. Rd8 {[%clk 0:00:53]}  Nd2 {[%clk 0:01:47]} 33. Be1 {[%clk 0:00:42]}  Ne4+ {[%clk 0:01:44]} 34. Kf1 {[%clk 0:00:35]}  Rh2 {[%clk 0:01:30]} 35. Ra8 {[%clk 0:00:32]}  Rh1+ {[%clk 0:01:30]} 36. Ke2 {[%clk 0:00:32]}  Rh3 {[%clk 0:01:30]} 37. Rxa7 {[%clk 0:00:23]}  Nxg3+ {[%clk 0:01:25]} 38. Bxg3 {[%clk 0:00:15]}  Rxg3 {[%clk 0:01:26]} 39. Ra6 {[%clk 0:00:16]}  Kf5 {[%clk 0:01:20]} 40. a4 {[%clk 0:00:14]}  Ra3 {[%clk 0:01:16]} 41. Ra7 {[%clk 0:00:11]}  f6 {[%clk 0:01:12]} 42. h5 {[%clk 0:00:12]}  b5 {[%clk 0:01:11]} 43. h6 {[%clk 0:00:10]}  bxa4 {[%clk 0:01:11]} 44. h7 {[%clk 0:00:10]}  Rh3 {[%clk 0:01:11]} 45. Kf2 {[%clk 0:00:10]}  Kg6 {[%clk 0:01:11]} 46. Rxa4 {[%clk 0:00:08]}  Rxh7 {[%clk 0:01:04]} 47. Rxg4+ {[%clk 0:00:08]}  Kf5 {[%clk 0:01:05]} 48. Ra4 {[%clk 0:00:09]}  Rg7 {[%clk 0:01:05]} 49. Kf3 {[%clk 0:00:09]}  Rb7 {[%clk 0:01:05]} 50. Ra3 {[%clk 0:00:09]}  Rb4 {[%clk 0:01:05]} 51. Ke3 {[%clk 0:00:09]}  Rh4 {[%clk 0:01:04]} 52. Ra8 {[%clk 0:00:09]}  Rh3+ {[%clk 0:01:04]} 53. Kf2 {[%clk 0:00:09]}  Kf4 {[%clk 0:01:05]} 54. Rf8 {[%clk 0:00:09]}  f5 {[%clk 0:01:05]} 55. Rb8 {[%clk 0:00:08]}  e4 {[%clk 0:01:05]} 56. Ra8 {[%clk 0:00:07]}  Rh2+ {[%clk 0:01:06]} 57. Kg1 {[%clk 0:00:07]}  Rb2 {[%clk 0:01:06]} 58. Ra3 {[%clk 0:00:07]}  Kg4 {[%clk 0:01:07]} 59. Kf1 {[%clk 0:00:07]}  f4 {[%clk 0:01:07]} 60. Rc3 {[%clk 0:00:07]}  e3 {[%clk 0:01:07]} 61. Rc8 {[%clk 0:00:06]}  Kf3 {[%clk 0:01:07]} 62. Rc1 {[%clk 0:00:06]}  Rg2 {[%clk 0:01:05]} 63. Rc3 {[%clk 0:00:05]}  Rh2 {[%clk 0:01:05]} 64. Kg1 {[%clk 0:00:05]}  Ra2 {[%clk 0:01:05]} 65. Rc1 {[%clk 0:00:04]}  Ke2 {[%clk 0:01:04]} 66. Rb1 {[%clk 0:00:04]}  f3 {[%clk 0:01:02]} 67. Kh2 {[%clk 0:00:04]}  Kf2 {[%clk 0:01:02]} 68. Rb7 {[%clk 0:00:03]}  e2 {[%clk 0:01:01]} 0-1


[Site "https://www.chess.com"]

[Event "Titled Tuesday Blitz March 21 Early 2023"]
[White "MKlose11"]
[Black "Movahed, Sina"]
[BlackFideId "42520835"]
[WhiteElo "2604"]
[BlackElo "2225"]
[Result "0-1"]
[Round "02"]
[TimeControl "180+2"]
[Date "2023.03.21"]
[WhiteClock "0:00:10"]
[BlackClock "0:00:10"]

1. e4 {[%clk 0:03:00]}  c5 {[%clk 0:02:59]} 2. Nc3 {[%clk 0:02:48]}  d6 {[%clk 0:02:58]} 3. g3 {[%clk 0:02:49]}  g6 {[%clk 0:02:58]} 4. d3 {[%clk 0:02:49]}  Bg7 {[%clk 0:02:58]} 5. Bg2 {[%clk 0:02:49]}  Nc6 {[%clk 0:02:59]} 6. Be3 {[%clk 0:02:43]}  Rb8 {[%clk 0:02:57]} 7. Qd2 {[%clk 0:02:43]}  b5 {[%clk 0:02:57]} 8. Nge2 {[%clk 0:02:43]}  b4 {[%clk 0:02:56]} 9. Nd1 {[%clk 0:02:43]}  h5 {[%clk 0:02:57]} 10. h3 {[%clk 0:02:43]}  e5 {[%clk 0:02:44]} 11. O-O {[%clk 0:02:41]}  Nge7 {[%clk 0:02:42]} 12. f4 {[%clk 0:02:40]}  exf4 {[%clk 0:02:40]} 13. Bxf4 {[%clk 0:02:35]}  O-O {[%clk 0:02:38]} 14. Bh6 {[%clk 0:02:35]}  Be6 {[%clk 0:02:36]} 15. Bxg7 {[%clk 0:02:35]}  Kxg7 {[%clk 0:02:37]} 16. Nf4 {[%clk 0:02:30]}  a5 {[%clk 0:02:33]} 17. Ne3 {[%clk 0:02:30]}  Qd7 {[%clk 0:02:33]} 18. Kh2 {[%clk 0:02:28]}  a4 {[%clk 0:02:33]} 19. Rf2 {[%clk 0:02:27]}  Ne5 {[%clk 0:02:28]} 20. h4 {[%clk 0:01:53]}  a3 {[%clk 0:02:25]} 21. b3 {[%clk 0:01:52]}  N7c6 {[%clk 0:02:17]} 22. Raf1 {[%clk 0:01:48]}  Nd4 {[%clk 0:02:17]} 23. Bh3 {[%clk 0:01:33]}  Bxh3 {[%clk 0:02:08]} 24. Nxh3 {[%clk 0:01:34]}  Ng4+ {[%clk 0:01:53]} 25. Nxg4 {[%clk 0:01:32]}  hxg4 {[%clk 0:01:54]} 26. Nf4 {[%clk 0:01:24]}  f5 {[%clk 0:01:39]} 27. exf5 {[%clk 0:01:21]}  Rxf5 {[%clk 0:01:33]} 28. Qd1 {[%clk 0:01:07]}  Nf3+ {[%clk 0:01:30]} 29. Rxf3 {[%clk 0:01:01]}  gxf3 {[%clk 0:01:31]} 30. Qxf3 {[%clk 0:01:01]}  Re8 {[%clk 0:01:29]} 31. Rf2 {[%clk 0:01:01]}  Qf7 {[%clk 0:01:26]} 32. Qg4 {[%clk 0:00:55]}  Ree5 {[%clk 0:01:25]} 33. Kg2 {[%clk 0:00:36]}  Qb7+ {[%clk 0:01:09]} 34. Rf3 {[%clk 0:00:33]}  Qf7 {[%clk 0:00:57]} 35. Rf2 {[%clk 0:00:33]}  Kh6 {[%clk 0:00:56]} 36. Rf3 {[%clk 0:00:31]}  d5 {[%clk 0:00:51]} 37. Rf2 {[%clk 0:00:31]}  c4 {[%clk 0:00:51]} 38. dxc4 {[%clk 0:00:29]}  dxc4 {[%clk 0:00:52]} 39. Kh2 {[%clk 0:00:28]}  cxb3 {[%clk 0:00:49]} 40. cxb3 {[%clk 0:00:29]}  Re4 {[%clk 0:00:47]} 41. Rg2 {[%clk 0:00:27]}  Qf6 {[%clk 0:00:46]} 42. Rc2 {[%clk 0:00:25]}  Rd4 {[%clk 0:00:38]} 43. Re2 {[%clk 0:00:22]}  Rd6 {[%clk 0:00:36]} 44. Kh3 {[%clk 0:00:22]}  Rc6 {[%clk 0:00:33]} 45. Rd2 {[%clk 0:00:20]}  Rc1 {[%clk 0:00:31]} 46. Re2 {[%clk 0:00:20]}  Rh1+ {[%clk 0:00:26]} 47. Kg2 {[%clk 0:00:20]}  Rb1 {[%clk 0:00:25]} 48. Re6 {[%clk 0:00:19]}  Qb2+ {[%clk 0:00:23]} 49. Re2 {[%clk 0:00:18]}  Qf6 {[%clk 0:00:14]} 50. Re6 {[%clk 0:00:17]}  Qb2+ {[%clk 0:00:08]} 51. Re2 {[%clk 0:00:16]}  Qg7 {[%clk 0:00:05]} 52. h5 {[%clk 0:00:10]}  Qb7+ {[%clk 0:00:03]} 53. Kf2 {[%clk 0:00:09]}  Qa7+ {[%clk 0:00:03]} 54. Kg2 {[%clk 0:00:09]}  Rg5 {[%clk 0:00:02]} 55. Qh4 {[%clk 0:00:02]}  Qb7+ {[%clk 0:00:02]} 56. Kf2 {[%clk 0:00:03]}  Qb6+ {[%clk 0:00:02]} 57. Kg2 {[%clk 0:00:03]}  Qc6+ {[%clk 0:00:03]} 58. Kf2 {[%clk 0:00:04]}  Qc5+ {[%clk 0:00:04]} 59. Kf3 {[%clk 0:00:05]}  Qc6+ {[%clk 0:00:04]} 60. Kf2 {[%clk 0:00:05]}  Qc5+ {[%clk 0:00:03]} 61. Re3 {[%clk 0:00:05]}  Rb2+ {[%clk 0:00:03]} 62. Ne2 {[%clk 0:00:05]}  Qf5+ {[%clk 0:00:03]} 63. Qf4 {[%clk 0:00:05]}  Qxf4+ {[%clk 0:00:03]} 64. gxf4 {[%clk 0:00:06]}  Rxh5 {[%clk 0:00:04]} 65. Re4 {[%clk 0:00:06]}  Rh2+ {[%clk 0:00:04]} 66. Kf3 {[%clk 0:00:06]}  Rh3+ {[%clk 0:00:05]} 67. Kg4 {[%clk 0:00:07]}  Rh5 {[%clk 0:00:04]} 68. Ng3 {[%clk 0:00:07]}  Rc5 {[%clk 0:00:05]} 69. Rxb4 {[%clk 0:00:08]}  Rxa2 {[%clk 0:00:05]} 70. Rb6 {[%clk 0:00:08]}  Rcc2 {[%clk 0:00:05]} 71. f5 {[%clk 0:00:08]}  Kg7 {[%clk 0:00:06]} 72. Rxg6+ {[%clk 0:00:09]}  Kf7 {[%clk 0:00:07]} 73. Ra6 {[%clk 0:00:09]}  Rg2 {[%clk 0:00:07]} 74. Kf4 {[%clk 0:00:08]}  Rgf2+ {[%clk 0:00:08]} 75. Ke5 {[%clk 0:00:08]}  Rfb2 {[%clk 0:00:08]} 76. Ne4 {[%clk 0:00:09]}  Rxb3 {[%clk 0:00:08]} 77. Ra7+ {[%clk 0:00:09]}  Kf8 {[%clk 0:00:08]} 78. Ng5 {[%clk 0:00:09]}  Rb5+ {[%clk 0:00:08]} 79. Kf6 {[%clk 0:00:09]}  Rb6+ {[%clk 0:00:08]} 80. Ne6+ {[%clk 0:00:10]}  Kg8 {[%clk 0:00:09]} 81. Rg7+ {[%clk 0:00:09]}  Kh8 {[%clk 0:00:09]} 82. Ra7 {[%clk 0:00:10]}  Ra1 {[%clk 0:00:08]} 83. Ke7 {[%clk 0:00:10]}  a2 {[%clk 0:00:08]} 84. f6 {[%clk 0:00:07]}  Rxe6+ {[%clk 0:00:07]} 85. Kxe6 {[%clk 0:00:07]}  Re1+ {[%clk 0:00:07]} 86. Kf7 {[%clk 0:00:07]}  a1=Q {[%clk 0:00:08]} 87. Rxa1 {[%clk 0:00:07]}  Rxa1 {[%clk 0:00:09]} 88. Kf8 {[%clk 0:00:08]}  Rf1 {[%clk 0:00:09]} 89. f7 {[%clk 0:00:08]}  Kh7 {[%clk 0:00:09]} 90. Ke8 {[%clk 0:00:09]}  Kg7 {[%clk 0:00:10]} 91. f8=Q+ {[%clk 0:00:10]}  Rxf8+ {[%clk 0:00:10]} 0-1


[Site "https://www.chess.com"]